[Event "Late-Titled-Tuesday-Blitz-June-18-2024"]
[Site "Chess.com"]
[Date "2024.06.18"]
[Round "6"]
[White "dretch"]
[Black "SHIVACalypso"]
[Result "1-0"]
[WhiteElo "2845"]
[BlackElo "2553"]
[TimeControl "180+1"]
[EndTime "15:09:49 PDT"]
[Termination "dretch won by resignation"]

1. d4 {[%clk 0:03:00.9]} 1... e6 {[%clk 0:02:59.3]} 2. c4 {[%clk 0:03:01.3]}
2... Nf6 {[%clk 0:02:59.7]} 3. Nc3 {[%clk 0:03:01.8]} 3... Bb4 {[%clk
0:02:59.4]} 4. Qc2 {[%clk 0:03:02.2]} 4... b6 {[%clk 0:02:57.9]} 5. e4 {[%clk
0:03:02]} 5... c5 {[%clk 0:02:57.8]} 6. a3 {[%clk 0:03:01]} 6... cxd4 {[%clk
0:02:50.1]} 7. axb4 {[%clk 0:03:00]} 7... dxc3 {[%clk 0:02:50.1]} 8. e5 {[%clk
0:03:00.6]} 8... Ng8 {[%clk 0:02:40.8]} 9. bxc3 {[%clk 0:02:57.6]} 9... Bb7
{[%clk 0:02:40.4]} 10. Nf3 {[%clk 0:02:56.3]} 10... Ne7 {[%clk 0:02:40.4]} 11.
Be2 {[%clk 0:02:53.5]} 11... Ng6 {[%clk 0:02:33.5]} 12. b5 {[%clk 0:02:36.7]}
12... Qc7 {[%clk 0:02:15.8]} 13. Ba3 {[%clk 0:02:36.1]} 13... Nxe5 {[%clk
0:02:11.4]} 14. Nxe5 {[%clk 0:02:29.4]} 14... Qxe5 {[%clk 0:02:12.3]} 15. O-O
{[%clk 0:02:28.8]} 15... d5 {[%clk 0:01:39.1]} 16. Bf3 {[%clk 0:02:22.9]} 16...
Nd7 {[%clk 0:01:37.7]} 17. Rfe1 {[%clk 0:02:22]} 17... Qg5 {[%clk 0:01:36.3]}
18. h4 {[%clk 0:01:55.4]} 18... Qxh4 {[%clk 0:01:31.7]} 19. cxd5 {[%clk
0:01:55.1]} 19... Nc5 {[%clk 0:01:32.2]} 20. dxe6 {[%clk 0:01:50.1]} 20... Bxf3
{[%clk 0:01:14.1]} 21. exf7+ {[%clk 0:01:49.9]} 21... Kxf7 {[%clk 0:01:14.8]}
22. Qa2+ {[%clk 0:01:23.3]} 22... Kg6 {[%clk 0:01:10.4]} 23. Bxc5 {[%clk
0:01:10.3]} 23... Qg4 {[%clk 0:00:55.2]} 24. Qe6+ {[%clk 0:01:03.7]} 24... Qxe6
{[%clk 0:00:44.8]} 25. Rxe6+ {[%clk 0:01:04.6]} 25... Kf7 {[%clk 0:00:29.1]} 26.
Re7+ {[%clk 0:01:00.6]} 26... Kf6 {[%clk 0:00:29.6]} 27. gxf3 {[%clk 0:00:33.3]}
27... bxc5 {[%clk 0:00:29.1]} 28. Rae1 {[%clk 0:00:32]} 28... g6 {[%clk
0:00:23.2]} 29. R1e6+ {[%clk 0:00:27.8]} 29... Kg5 {[%clk 0:00:23]} 30. c4
{[%clk 0:00:25]} 30... Kh6 {[%clk 0:00:19.5]} 31. Rc6 {[%clk 0:00:19.7]} 31...
Rhc8 {[%clk 0:00:18.9]} 32. Rxa7 {[%clk 0:00:16.9]} 32... Rxc6 {[%clk
0:00:11.9]} 33. Rxa8 {[%clk 0:00:16.9]} 33... Rc7 {[%clk 0:00:10.3]} 34. Ra6
{[%clk 0:00:10.8]} 34... Kg5 {[%clk 0:00:09.9]} 35. Rc6 {[%clk 0:00:10.7]} 35...
Rb7 {[%clk 0:00:07.1]} 36. Rxc5+ {[%clk 0:00:10.7]} 36... Kf4 {[%clk 0:00:07.8]}
37. Kg2 {[%clk 0:00:11]} 37... h5 {[%clk 0:00:06.2]} 38. Rc6 {[%clk 0:00:10.2]}
38... g5 {[%clk 0:00:06.7]} 39. b6 {[%clk 0:00:10.1]} 39... h4 {[%clk 0:00:06]}
40. c5 {[%clk 0:00:09.3]} 40... Rh7 {[%clk 0:00:05.4]} 41. Rf6+ {[%clk
0:00:08.7]} 41... Ke5 {[%clk 0:00:05]} 42. Rf8 {[%clk 0:00:08.8]} 42... h3+
{[%clk 0:00:03.7]} 43. Kh2 {[%clk 0:00:09]} 43... Kd5 {[%clk 0:00:03.7]} 44.
Rf5+ {[%clk 0:00:09.3]} 44... Kc6 {[%clk 0:00:03.7]} 45. Rxg5 {[%clk 0:00:10.2]}
45... Rh8 {[%clk 0:00:03]} 46. f4 {[%clk 0:00:10.6]} 46... Rh4 {[%clk
0:00:02.9]} 47. f5 {[%clk 0:00:09.1]} 47... Rf4 {[%clk 0:00:02.8]} 48. Kxh3
{[%clk 0:00:08.1]} 48... Rxf2 {[%clk 0:00:02.8]} 49. Kg4 {[%clk 0:00:06.8]}
49... Rg2+ {[%clk 0:00:02.6]} 50. Kh5 {[%clk 0:00:07]} 50... Rf2 {[%clk
0:00:03.1]} 51. Kg6 {[%clk 0:00:07.4]} 51... Kxc5 {[%clk 0:00:02.9]} 52. f6+
{[%clk 0:00:07.9]} 52... Kxb6 {[%clk 0:00:03]} 53. f7 {[%clk 0:00:08.5]} 53...
Kc7 {[%clk 0:00:02.8]} 54. Rf5 {[%clk 0:00:08.8]} 54... Rg2+ {[%clk 0:00:03.1]}
55. Kf6 {[%clk 0:00:09.2]} 55... Rd2 {[%clk 0:00:02.1]} 56. f8=Q {[%clk
0:00:09]} 56... Rd7 {[%clk 0:00:02.7]} 57. Qc5+ {[%clk 0:00:06.8]} 1-0

[Event "Late-Titled-Tuesday-Blitz-June-18-2024"]
[Site "Chess.com"]
[Date "2024.06.18"]
[Round "6"]
[White "GrotBchess"]
[Black "ReadySkate"]
[Result "0-1"]
[WhiteElo "2586"]
[BlackElo "2780"]
[TimeControl "180+1"]
[EndTime "15:09:52 PDT"]
[Termination "ReadySkate won on time"]

1. e4 {[%clk 0:03:00.9]} 1... c5 {[%clk 0:02:59.7]} 2. Nf3 {[%clk 0:03:00.9]}
2... e6 {[%clk 0:03:00.2]} 3. d4 {[%clk 0:02:59.6]} 3... cxd4 {[%clk 0:03:01.1]}
4. Nxd4 {[%clk 0:02:59.8]} 4... Nf6 {[%clk 0:03:01.3]} 5. Nc3 {[%clk 0:02:59.8]}
5... Nc6 {[%clk 0:03:01.6]} 6. Ndb5 {[%clk 0:02:58.5]} 6... Bc5 {[%clk
0:03:01.7]} 7. Nd6+ {[%clk 0:02:54.9]} 7... Ke7 {[%clk 0:03:01.8]} 8. Bf4 {[%clk
0:02:55]} 8... e5 {[%clk 0:03:02.3]} 9. Nf5+ {[%clk 0:02:54.5]} 9... Kf8 {[%clk
0:03:02.9]} 10. Bg5 {[%clk 0:02:48.8]} 10... d6 {[%clk 0:03:03.1]} 11. Ne3
{[%clk 0:02:45.2]} 11... h6 {[%clk 0:03:02.3]} 12. Bxf6 {[%clk 0:02:45.1]} 12...
Qxf6 {[%clk 0:03:03.2]} 13. Ncd5 {[%clk 0:02:43.6]} 13... Qd8 {[%clk 0:03:03.6]}
14. c3 {[%clk 0:02:42.8]} 14... a6 {[%clk 0:03:03.2]} 15. Bc4 {[%clk 0:02:41.4]}
15... Be6 {[%clk 0:03:02.8]} 16. O-O {[%clk 0:02:40.4]} 16... g6 {[%clk
0:03:03.2]} 17. Kh1 {[%clk 0:02:37.2]} 17... Kg7 {[%clk 0:03:02.9]} 18. f4
{[%clk 0:02:35.4]} 18... exf4 {[%clk 0:03:02.8]} 19. Rxf4 {[%clk 0:02:35.9]}
19... Qg5 {[%clk 0:03:02.8]} 20. Qf1 {[%clk 0:02:33.8]} 20... Ne5 {[%clk
0:02:51.7]} 21. Bb3 {[%clk 0:02:31.9]} 21... h5 {[%clk 0:02:46.9]} 22. Nc4
{[%clk 0:02:31.3]} 22... h4 {[%clk 0:02:40.6]} 23. Nc7 {[%clk 0:02:26.7]} 23...
Raf8 {[%clk 0:02:35.7]} 24. Nxe5 {[%clk 0:02:12.5]} 24... dxe5 {[%clk
0:02:33.5]} 25. Rf3 {[%clk 0:02:11.9]} 25... Bxb3 {[%clk 0:02:19.8]} 26. axb3
{[%clk 0:02:10.4]} 26... Qg4 {[%clk 0:02:15.7]} 27. Qe2 {[%clk 0:02:04.8]} 27...
Qd7 {[%clk 0:02:05.7]} 28. Nd5 {[%clk 0:02:03.6]} 28... f5 {[%clk 0:02:04.2]}
29. Raf1 {[%clk 0:01:59.3]} 29... fxe4 {[%clk 0:01:48.2]} 30. Qxe4 {[%clk
0:02:00.2]} 30... Bd6 {[%clk 0:01:40.4]} 31. c4 {[%clk 0:01:52.5]} 31... Qe6
{[%clk 0:01:34.8]} 32. h3 {[%clk 0:01:51.6]} 32... Rxf3 {[%clk 0:01:29.3]} 33.
Rxf3 {[%clk 0:01:52.5]} 33... Rf8 {[%clk 0:01:26.3]} 34. Rxf8 {[%clk 0:01:48.3]}
34... Bxf8 {[%clk 0:01:27.2]} 35. Ne3 {[%clk 0:01:48.2]} 35... Bc5 {[%clk
0:01:24.9]} 36. Qxb7+ {[%clk 0:01:45.5]} 36... Qf7 {[%clk 0:01:13.7]} 37. Qe4
{[%clk 0:01:37]} 37... Bd4 {[%clk 0:01:02.5]} 38. Kh2 {[%clk 0:01:28.7]} 38...
Bxb2 {[%clk 0:00:53.4]} 39. Ng4 {[%clk 0:01:18.6]} 39... Qe7 {[%clk 0:00:43.1]}
40. Ne3 {[%clk 0:01:10.9]} 40... Bd4 {[%clk 0:00:40.2]} 41. Nd5 {[%clk
0:01:08.6]} 41... Qg5 {[%clk 0:00:39.1]} 42. Nc7 {[%clk 0:01:02.1]} 42... Qg3+
{[%clk 0:00:32.2]} 43. Kh1 {[%clk 0:01:00.4]} 43... Be3 {[%clk 0:00:28.5]} 44.
Qb1 {[%clk 0:00:40.9]} 44... e4 {[%clk 0:00:25.3]} 45. Nd5 {[%clk 0:00:32.4]}
45... Bf4 {[%clk 0:00:24.4]} 46. Nxf4 {[%clk 0:00:25.6]} 46... Qxf4 {[%clk
0:00:25.3]} 47. Qa1+ {[%clk 0:00:19.1]} 47... Kh7 {[%clk 0:00:24.5]} 48. Qxa6
{[%clk 0:00:18.6]} 48... e3 {[%clk 0:00:24.3]} 49. Qb7+ {[%clk 0:00:18.5]} 49...
Kh6 {[%clk 0:00:23.9]} 50. Qc8 {[%clk 0:00:16.6]} 50... e2 {[%clk 0:00:14.7]}
51. Qh8+ {[%clk 0:00:15.2]} 51... Kg5 {[%clk 0:00:14.3]} 52. Qd8+ {[%clk
0:00:15.1]} 52... Kf5 {[%clk 0:00:13.5]} 53. Qc8+ {[%clk 0:00:13.9]} 53... Ke4
{[%clk 0:00:13.1]} 54. Qc6+ {[%clk 0:00:13]} 54... Ke3 {[%clk 0:00:12.8]} 55.
Qe6+ {[%clk 0:00:08.7]} 55... Kd2 {[%clk 0:00:11]} 0-1

[Event "Late-Titled-Tuesday-Blitz-June-18-2024"]
[Site "Chess.com"]
[Date "2024.06.18"]
[Round "6"]
[White "jlf287"]
[Black "insatiable27"]
[Result "0-1"]
[WhiteElo "2500"]
[BlackElo "2364"]
[TimeControl "180+1"]
[EndTime "15:09:52 PDT"]
[Termination "insatiable27 won on time"]

1. d4 {[%clk 0:03:00.9]} 1... d5 {[%clk 0:02:58.9]} 2. c4 {[%clk 0:03:01.1]}
2... e6 {[%clk 0:02:57.3]} 3. Nf3 {[%clk 0:03:00.9]} 3... Nf6 {[%clk 0:02:55.6]}
4. g3 {[%clk 0:03:01.3]} 4... h6 {[%clk 0:02:55.2]} 5. Bg2 {[%clk 0:03:01.1]}
5... Bd6 {[%clk 0:02:55.9]} 6. O-O {[%clk 0:03:01.2]} 6... O-O {[%clk
0:02:56.1]} 7. Nc3 {[%clk 0:02:54.1]} 7... Nc6 {[%clk 0:02:52.5]} 8. b3 {[%clk
0:02:45.8]} 8... Re8 {[%clk 0:02:52.4]} 9. Bb2 {[%clk 0:02:44.8]} 9... dxc4
{[%clk 0:02:53.1]} 10. bxc4 {[%clk 0:02:44.5]} 10... e5 {[%clk 0:02:53.9]} 11.
e3 {[%clk 0:02:44.2]} 11... Bg4 {[%clk 0:02:48.3]} 12. h3 {[%clk 0:02:36.4]}
12... Bh5 {[%clk 0:02:38.6]} 13. g4 {[%clk 0:02:36.8]} 13... Bg6 {[%clk
0:02:38.4]} 14. Nh4 {[%clk 0:02:37.1]} 14... Bh7 {[%clk 0:02:35.9]} 15. f4
{[%clk 0:02:15.4]} 15... exf4 {[%clk 0:02:27.1]} 16. exf4 {[%clk 0:02:15.5]}
16... Qe7 {[%clk 0:02:21]} 17. Nd5 {[%clk 0:01:53.8]} 17... Nxd5 {[%clk
0:02:09.3]} 18. cxd5 {[%clk 0:01:54.7]} 18... Qe3+ {[%clk 0:02:08.3]} 19. Kh1
{[%clk 0:01:50.9]} 19... Nb4 {[%clk 0:01:59.1]} 20. Rf3 {[%clk 0:01:47.9]} 20...
Qe2 {[%clk 0:01:51]} 21. Bc3 {[%clk 0:01:30.1]} 21... Nxa2 {[%clk 0:01:33.5]}
22. Bd2 {[%clk 0:01:11.2]} 22... Nb4 {[%clk 0:01:19.4]} 23. f5 {[%clk
0:01:07.5]} 23... Nxd5 {[%clk 0:01:13.4]} 24. Rb3 {[%clk 0:00:49.3]} 24... Nf4
{[%clk 0:00:44.2]} 25. Bf3 {[%clk 0:00:49.5]} 25... Qe7 {[%clk 0:00:37.6]} 26.
Qf1 {[%clk 0:00:42.1]} 26... Qxh4 {[%clk 0:00:36.2]} 27. Bxb7 {[%clk 0:00:39.9]}
27... Rab8 {[%clk 0:00:15.1]} 28. Bxf4 {[%clk 0:00:38.3]} 28... Bxf4 {[%clk
0:00:15.5]} 29. Qxf4 {[%clk 0:00:38.6]} 29... Re1+ {[%clk 0:00:16.2]} 30. Rxe1
{[%clk 0:00:34.5]} 30... Qxe1+ {[%clk 0:00:16.8]} 31. Kg2 {[%clk 0:00:32.9]}
31... Qe2+ {[%clk 0:00:16.5]} 32. Qf2 {[%clk 0:00:31.2]} 32... Qd1 {[%clk
0:00:16.6]} 33. Qb2 {[%clk 0:00:23.6]} 33... h5 {[%clk 0:00:13.9]} 34. Bd5
{[%clk 0:00:18.8]} 34... Rxb3 {[%clk 0:00:14]} 35. Bxb3 {[%clk 0:00:19.7]} 35...
Qd3 {[%clk 0:00:14]} 36. Qa2 {[%clk 0:00:09.5]} 36... Qe4+ {[%clk 0:00:13.1]}
37. Kf2 {[%clk 0:00:08.4]} 37... hxg4 {[%clk 0:00:13.5]} 38. hxg4 {[%clk
0:00:08.5]} 38... Kh8 {[%clk 0:00:14.3]} 39. Bxf7 {[%clk 0:00:08.2]} 39... Qxg4
{[%clk 0:00:14]} 40. Qe6 {[%clk 0:00:05.5]} 40... Qxd4+ {[%clk 0:00:14.2]} 41.
Kg2 {[%clk 0:00:05.5]} 41... Qg4+ {[%clk 0:00:14.4]} 42. Kh1 {[%clk 0:00:05.2]}
42... Qh3+ {[%clk 0:00:14.5]} 43. Kg1 {[%clk 0:00:05.2]} 43... Bxf5 {[%clk
0:00:12.5]} 44. Qe8+ {[%clk 0:00:04.9]} 44... Kh7 {[%clk 0:00:13.2]} 45. Qg8+
{[%clk 0:00:04.4]} 45... Kh6 {[%clk 0:00:13.9]} 46. Qh8+ {[%clk 0:00:02.5]}
46... Bh7 {[%clk 0:00:14.3]} 47. Qd8 {[%clk 0:00:03.4]} 47... Qg3+ {[%clk
0:00:13.8]} 48. Kh1 {[%clk 0:00:03.5]} 48... Qh3+ {[%clk 0:00:14.1]} 49. Kg1
{[%clk 0:00:03.8]} 49... Qg4+ {[%clk 0:00:14.7]} 50. Kf2 {[%clk 0:00:03.6]}
50... Qf5+ {[%clk 0:00:14.7]} 51. Ke1 {[%clk 0:00:04.2]} 51... Qxf7 {[%clk
0:00:15.2]} 52. Qh4+ {[%clk 0:00:04.6]} 52... Qh5 {[%clk 0:00:14.8]} 53. Qf4+
{[%clk 0:00:04]} 53... Qg5 {[%clk 0:00:15.1]} 54. Qh2+ {[%clk 0:00:02.2]} 54...
Kg6 {[%clk 0:00:15]} 55. Qxc7 {[%clk 0:00:01.9]} 55... Qg1+ {[%clk 0:00:14.3]}
56. Ke2 {[%clk 0:00:01.9]} 56... Qg2+ {[%clk 0:00:14.6]} 57. Ke1 {[%clk
0:00:01.9]} 57... Qe4+ {[%clk 0:00:14.4]} 58. Kf1 {[%clk 0:00:02.1]} 58... Qf5+
{[%clk 0:00:14.3]} 59. Ke1 {[%clk 0:00:01.7]} 59... Kf6 {[%clk 0:00:13.9]} 60.
Qd8+ {[%clk 0:00:01]} 60... Kg6 {[%clk 0:00:13.1]} 0-1

[Event "Late-Titled-Tuesday-Blitz-June-18-2024"]
[Site "Chess.com"]
[Date "2024.06.18"]
[Round "6"]
[White "Hikaru"]
[Black "Msb2"]
[Result "1/2-1/2"]
[WhiteElo "3291"]
[BlackElo "3077"]
[TimeControl "180+1"]
[EndTime "15:10:00 PDT"]
[Termination "Game drawn by repetition"]

1. b3 {[%clk 0:03:00.9]} 1... d5 {[%clk 0:03:00]} 2. Bb2 {[%clk 0:03:00.9]} 2...
e6 {[%clk 0:03:00.7]} 3. e3 {[%clk 0:03:00.5]} 3... Nf6 {[%clk 0:03:01.4]} 4.
Nf3 {[%clk 0:03:00.6]} 4... Bd6 {[%clk 0:03:02]} 5. c4 {[%clk 0:03:00.3]} 5...
O-O {[%clk 0:03:02.7]} 6. d4 {[%clk 0:03:00.5]} 6... b6 {[%clk 0:02:55.2]} 7.
cxd5 {[%clk 0:02:56.2]} 7... exd5 {[%clk 0:02:56.1]} 8. Ba3 {[%clk 0:02:56.5]}
8... Bxa3 {[%clk 0:02:48]} 9. Nxa3 {[%clk 0:02:56.4]} 9... c5 {[%clk 0:02:48.7]}
10. Be2 {[%clk 0:02:54.4]} 10... Nc6 {[%clk 0:02:41.5]} 11. Rc1 {[%clk 0:02:54]}
11... Qe7 {[%clk 0:02:35.5]} 12. Nb1 {[%clk 0:02:49.4]} 12... Bg4 {[%clk
0:02:31.9]} 13. O-O {[%clk 0:02:41.2]} 13... Rac8 {[%clk 0:02:31.7]} 14. dxc5
{[%clk 0:02:40.6]} 14... bxc5 {[%clk 0:02:32.6]} 15. h3 {[%clk 0:02:23]} 15...
Bh5 {[%clk 0:02:31.5]} 16. Nc3 {[%clk 0:02:19.8]} 16... Rfd8 {[%clk 0:02:31.4]}
17. g4 {[%clk 0:01:29]} 17... d4 {[%clk 0:02:04.5]} 18. exd4 {[%clk 0:01:29.9]}
18... Nxd4 {[%clk 0:02:00]} 19. Nxd4 {[%clk 0:01:28]} 19... cxd4 {[%clk
0:01:58.9]} 20. gxh5 {[%clk 0:01:06.5]} 20... dxc3 {[%clk 0:01:58.7]} 21. Qe1
{[%clk 0:01:06.1]} 21... Qe5 {[%clk 0:01:28.1]} 22. Bc4 {[%clk 0:01:05.1]} 22...
Qg5+ {[%clk 0:01:21.8]} 23. Kh1 {[%clk 0:01:03.5]} 23... Nd5 {[%clk 0:01:09.4]}
24. Qe4 {[%clk 0:00:57.8]} 24... Qxh5 {[%clk 0:01:04]} 25. Kh2 {[%clk
0:00:53.3]} 25... Nf6 {[%clk 0:00:55.2]} 26. Qf4 {[%clk 0:00:53.7]} 26... Nd5
{[%clk 0:00:46.9]} 27. Qg3 {[%clk 0:00:53.7]} 27... Rc6 {[%clk 0:00:43.7]} 28.
Rfd1 {[%clk 0:00:52.1]} 28... h6 {[%clk 0:00:36.1]} 29. Bxd5 {[%clk 0:00:20.8]}
29... Rxd5 {[%clk 0:00:37]} 30. Rxd5 {[%clk 0:00:21.2]} 30... Qxd5 {[%clk
0:00:37.5]} 31. Rxc3 {[%clk 0:00:22.1]} 31... Rg6 {[%clk 0:00:34.5]} 32. Rd3
{[%clk 0:00:22.6]} 32... Qb7 {[%clk 0:00:26.7]} 33. Qf3 {[%clk 0:00:20.7]} 33...
Qc7+ {[%clk 0:00:26.7]} 34. Kh1 {[%clk 0:00:21.3]} 34... Kh7 {[%clk 0:00:21.3]}
35. Rd1 {[%clk 0:00:16.6]} 35... Qe5 {[%clk 0:00:17.1]} 36. Rg1 {[%clk
0:00:15.9]} 36... Rf6 {[%clk 0:00:11]} 37. Qg3 {[%clk 0:00:16]} 37... Qxg3
{[%clk 0:00:08.7]} 38. fxg3 {[%clk 0:00:16.9]} 38... Rf2 {[%clk 0:00:07.5]} 39.
Rg2 {[%clk 0:00:17.5]} 39... Rf1+ {[%clk 0:00:08.1]} 40. Kh2 {[%clk 0:00:18.2]}
40... f5 {[%clk 0:00:08.4]} 41. Rc2 {[%clk 0:00:18.4]} 41... Ra1 {[%clk
0:00:08.7]} 42. Kg2 {[%clk 0:00:18.2]} 42... Kg6 {[%clk 0:00:09.3]} 43. Rc6+
{[%clk 0:00:18.3]} 43... Kg5 {[%clk 0:00:06.8]} 44. Ra6 {[%clk 0:00:19.2]} 44...
Rc1 {[%clk 0:00:05]} 45. h4+ {[%clk 0:00:18.5]} 45... Kh5 {[%clk 0:00:04.9]} 46.
Rxa7 {[%clk 0:00:18.9]} 46... g5 {[%clk 0:00:04.8]} 47. hxg5 {[%clk 0:00:18.8]}
47... hxg5 {[%clk 0:00:05.7]} 48. Ra4 {[%clk 0:00:19]} 48... Rc2+ {[%clk
0:00:06.3]} 49. Kf3 {[%clk 0:00:18]} 49... Rc3+ {[%clk 0:00:06.7]} 50. Kf2
{[%clk 0:00:18.5]} 50... Rc2+ {[%clk 0:00:06.8]} 51. Kf3 {[%clk 0:00:14.5]}
51... Rc3+ {[%clk 0:00:04]} 52. Kg2 {[%clk 0:00:11.6]} 52... Rc2+ {[%clk
0:00:04.4]} 53. Kg1 {[%clk 0:00:11.7]} 53... g4 {[%clk 0:00:04.6]} 54. Rf4
{[%clk 0:00:11.1]} 54... Rxa2 {[%clk 0:00:02.1]} 55. Rxf5+ {[%clk 0:00:11.8]}
55... Kg6 {[%clk 0:00:02.8]} 56. Rf4 {[%clk 0:00:12.1]} 56... Kg5 {[%clk
0:00:03.4]} 57. b4 {[%clk 0:00:11.5]} 57... Rb2 {[%clk 0:00:04]} 58. Rc4 {[%clk
0:00:11.5]} 58... Rb3 {[%clk 0:00:04.3]} 59. Kf2 {[%clk 0:00:12.2]} 59... Rb2+
{[%clk 0:00:04.6]} 60. Ke3 {[%clk 0:00:12.8]} 60... Rb3+ {[%clk 0:00:05.5]} 61.
Kf2 {[%clk 0:00:11.7]} 61... Rb2+ {[%clk 0:00:06.1]} 62. Ke1 {[%clk 0:00:11.9]}
62... Rb3 {[%clk 0:00:07]} 63. Kf2 {[%clk 0:00:05.1]} 1/2-1/2

[Event "Late-Titled-Tuesday-Blitz-June-18-2024"]
[Site "Chess.com"]
[Date "2024.06.18"]
[Round "6"]
[White "CheckBits"]
[Black "aranibos"]
[Result "1-0"]
[WhiteElo "2397"]
[BlackElo "2268"]
[TimeControl "180+1"]
[EndTime "15:10:03 PDT"]
[Termination "CheckBits won on time"]

1. e4 {[%clk 0:03:00.3]} 1... c5 {[%clk 0:02:58.6]} 2. Nf3 {[%clk 0:02:59.5]}
2... d6 {[%clk 0:02:58.5]} 3. c3 {[%clk 0:02:59.9]} 3... a6 {[%clk 0:02:57.4]}
4. d4 {[%clk 0:02:59.2]} 4... Nd7 {[%clk 0:02:55.7]} 5. Bd3 {[%clk 0:02:58.7]}
5... Qc7 {[%clk 0:02:54.7]} 6. O-O {[%clk 0:02:59.1]} 6... e6 {[%clk 0:02:54.3]}
7. Re1 {[%clk 0:02:59]} 7... Be7 {[%clk 0:02:53.4]} 8. Nbd2 {[%clk 0:02:55.5]}
8... Ngf6 {[%clk 0:02:52.2]} 9. h3 {[%clk 0:02:50.4]} 9... O-O {[%clk
0:02:48.5]} 10. e5 {[%clk 0:02:43.5]} 10... dxe5 {[%clk 0:02:45.9]} 11. dxe5
{[%clk 0:02:43.6]} 11... Nd5 {[%clk 0:02:41]} 12. Nf1 {[%clk 0:02:42.9]} 12...
c4 {[%clk 0:02:30.3]} 13. Bc2 {[%clk 0:02:41.9]} 13... g6 {[%clk 0:02:30.2]} 14.
Bh6 {[%clk 0:02:35.1]} 14... Rd8 {[%clk 0:02:30.4]} 15. Qe2 {[%clk 0:02:33]}
15... b5 {[%clk 0:02:28.4]} 16. h4 {[%clk 0:02:28.5]} 16... Bb7 {[%clk
0:02:26.2]} 17. h5 {[%clk 0:02:28.5]} 17... Bf8 {[%clk 0:02:17.8]} 18. Bxf8
{[%clk 0:02:13.5]} 18... Nxf8 {[%clk 0:02:16.5]} 19. Ng3 {[%clk 0:02:04.1]}
19... Nf4 {[%clk 0:02:15.3]} 20. Qe3 {[%clk 0:02:03.8]} 20... Nd3 {[%clk
0:02:03.4]} 21. Qg5 {[%clk 0:01:54]} 21... Bxf3 {[%clk 0:01:44.6]} 22. gxf3
{[%clk 0:01:53.2]} 22... Nxe1 {[%clk 0:01:43.4]} 23. Rxe1 {[%clk 0:01:50.9]}
23... Rd7 {[%clk 0:01:36.9]} 24. hxg6 {[%clk 0:01:41]} 24... fxg6 {[%clk
0:01:34]} 25. Ne4 {[%clk 0:01:34.3]} 25... Rf7 {[%clk 0:01:30.6]} 26. Nf6+
{[%clk 0:01:31.1]} 26... Rxf6 {[%clk 0:01:24.4]} 27. exf6 {[%clk 0:01:21.3]}
27... Qf7 {[%clk 0:01:19.7]} 28. a4 {[%clk 0:01:18.8]} 28... Rb8 {[%clk
0:01:09.2]} 29. Qe5 {[%clk 0:01:16.1]} 29... Nd7 {[%clk 0:01:06.9]} 30. Qc7
{[%clk 0:01:11.7]} 30... Rf8 {[%clk 0:01:03.1]} 31. Qd6 {[%clk 0:00:40.4]} 31...
Nxf6 {[%clk 0:01:01.6]} 32. Qxe6 {[%clk 0:00:35.5]} 32... Nh5 {[%clk 0:00:54.3]}
33. Qxf7+ {[%clk 0:00:25.3]} 33... Rxf7 {[%clk 0:00:54]} 34. Re8+ {[%clk
0:00:23.1]} 34... Kg7 {[%clk 0:00:53.4]} 35. Be4 {[%clk 0:00:21.6]} 35... bxa4
{[%clk 0:00:21.2]} 36. Rc8 {[%clk 0:00:13.8]} 36... Nf4 {[%clk 0:00:20.6]} 37.
Rxc4 {[%clk 0:00:13.3]} 37... Rd7 {[%clk 0:00:21.2]} 38. Rxa4 {[%clk 0:00:12.1]}
38... Rd1+ {[%clk 0:00:19.5]} 39. Kh2 {[%clk 0:00:12.4]} 39... g5 {[%clk
0:00:18.5]} 40. Rxa6 {[%clk 0:00:09.9]} 40... Rd2 {[%clk 0:00:18]} 41. b4 {[%clk
0:00:09.1]} 41... Rxf2+ {[%clk 0:00:16.6]} 42. Kg1 {[%clk 0:00:09.5]} 42... Rg2+
{[%clk 0:00:16.6]} 43. Kf1 {[%clk 0:00:09.8]} 43... Rb2 {[%clk 0:00:15.2]} 44.
Rb6 {[%clk 0:00:08.4]} 44... h5 {[%clk 0:00:14.5]} 45. c4 {[%clk 0:00:07.8]}
45... h4 {[%clk 0:00:14.9]} 46. Bf5 {[%clk 0:00:07.4]} 46... h3 {[%clk
0:00:14.3]} 47. Bxh3 {[%clk 0:00:07.4]} 47... Nxh3 {[%clk 0:00:14.7]} 48. c5
{[%clk 0:00:07.8]} 48... Rf2+ {[%clk 0:00:13.1]} 49. Ke1 {[%clk 0:00:08.1]}
49... Rxf3 {[%clk 0:00:13.4]} 50. c6 {[%clk 0:00:08.5]} 50... Rc3 {[%clk
0:00:13]} 51. Rb7+ {[%clk 0:00:08.4]} 51... Kf6 {[%clk 0:00:11.7]} 52. b5 {[%clk
0:00:07.8]} 52... g4 {[%clk 0:00:11.8]} 53. Rb8 {[%clk 0:00:02.4]} 53... g3
{[%clk 0:00:10.8]} 54. Kd2 {[%clk 0:00:03]} 54... Rb3 {[%clk 0:00:07.3]} 55. c7
{[%clk 0:00:03.1]} 55... g2 {[%clk 0:00:07.4]} 56. c8=Q {[%clk 0:00:03.4]} 56...
g1=Q {[%clk 0:00:06.7]} 57. Qf8+ {[%clk 0:00:03.5]} 57... Ke5 {[%clk 0:00:03.3]}
58. Re8+ {[%clk 0:00:03.2]} 58... Kd4 {[%clk 0:00:01.8]} 59. Qd6+ {[%clk
0:00:01.9]} 59... Kc4 {[%clk 0:00:01.3]} 60. Re4+ {[%clk 0:00:01.8]} 1-0